Cogmind - Beta 13 @@@ ROGUE MODE // 2024.05.19 @ 15:26:41 // AFD2018/Launchers Player: Haldron Result: Destroyed by DAS Turret with DAS Cannon Performance ------------- Evolutions (0) 0 Regions Visited (3) 600 Robots Destroyed (16) 80 Value Destroyed (327) 327 Prototype IDs (23) 460 Alien Tech Used (0) 0 Bonus (180) 180 TOTAL SCORE: 1647 Bonus ------- Aligned with FarCom 300 Friendly Fire -120 Cogmind --------- Core Integrity 0/250 Matter 243/300 Energy 160/160 System Corruption 0% Temperature Cool (0) Movement Walking (190) Ox1 Location -10/Exiles Parts ------- > --- POWER (1) -------- Light Nuclear Core > --- PROPULSION (2) --- Aluminum Leg > --- UTILITY (2) ------ Small Storage Unit Seismic Detector > --- WEAPON (2) ------- (None) > --- INVENTORY (8) ---- Ion Engine Ion Engine Light Ion Engine Hacking Suite Grenade Launcher Grenade Launcher Grenade Launcher Peak State ------------ > --- POWER ------------ Light Nuclear Core > --- PROPULSION ------- Aluminum Leg Aluminum Leg > --- UTILITY ---------- Small Storage Unit Seismic Detector > --- WEAPON ----------- Grenade Launcher Grenade Launcher > --- INVENTORY -------- Ion Engine Light Ion Engine Hacking Suite Grenade Launcher [Rating: 9] Favorites ----------- Power Light Nuclear Core Engine Light Ion Engine Power Core Light Nuclear Core Propulsion Aluminum Leg Leg Aluminum Leg Wheel Wheel Utility Small Storage Unit Device Seismic Detector Storage Small Storage Unit Weapon Grenade Launcher Launcher Grenade Launcher Build | -11 -10 -10 -10 ------- Run | Yrd Mat Min Exi Slots Evolved . | . . . . Power . | . . . . Propulsion . | . . . . Utility . | . . . . Weapon . | . . . . Parts Attached 14 | 6 7 . 1 Power 3 | 1 2 . . Engine 1 | 1 . . . Core 2 | . 2 . . Reactor . | . . . . Propulsion 3 | 1 2 . . Treads . | . . . . Leg 2 | . 2 . . Wheel 1 | 1 . . . Hover . | . . . . Flight . | . . . . Utility 3 | 3 . . . Device 2 | 2 . . . Storage 1 | 1 . . . Processor . | . . . . Hackware . | . . . . Protection . | . . . . Artifact . | . . . . Weapon 5 | 1 3 . 1 Energy Gun . | . . . . Energy Cannon . | . . . . Ballistic Gun . | . . . . Ballistic Cannon . | . . . . Launcher 5 | 1 3 . 1 Special Weapon . | . . . . Impact Weapon . | . . . . Slashing Weapon . | . . . . Piercing Weapon . | . . . . Special Melee Weapon . | . . . . Unidentified Prototypes . | . . . . Parts Lost 7 | . 4 . 3 Power 1 | . 1 . . Propulsion 2 | . 1 . 1 Utility . | . . . . Weapon 4 | . 2 . 2 Highest Loss Streak 3 | . 3 . 3 To Critical Strikes . | . . . . Average Slot Usage (%) 76 | . 64 85 84 Core 10 | . 5 14 14 Leg 21 | . 12 28 27 Device 14 | . 14 14 14 Storage 14 | . 14 14 14 Launcher 13 | . 13 14 14 Naked Turns . | . . . . Heaviest Build 14 | 12 14 14 14 Greatest Support 20 | 10 20 20 20 Greatest Overweight (x) 4 | 3 4 . . Average Overweight (x) . | 1 . . . Largest Inventory Capacity 8 | 8 8 8 8 Average Capacity 7 | 7 8 8 8 Most Carried 8 | 3 8 8 8 Average Carried 5 | 2 4 8 7 Final Capacity 8 | 8 8 8 8 Final Carried 8 | 3 8 8 7 Class Distribution -------------------- 88% | Scavenger-Mutant 11% | Mutant Dominant Class ---------------- Scavenger-Mutant | -10/Materials Scavenger-Mutant | -10/Mines Scavenger-Mutant | -10/Exiles Resources | -11 -10 -10 -10 ----------- Run | Yrd Mat Min Exi Matter Collected 474 | 55 412 . 7 Remotely . | . . . . Salvage Created 301 | 55 246 . . Parts 21 | 8 13 . . Haulers Intercepted . | . . . . Recyclers Shooed . | . . . . Parts Field Recycled . | . . . . Retrieved Matter . | . . . . Parts Self-Destructed . | . . . . Prevented . | . . . . Kills | -11 -10 -10 -10 ------- Run | Yrd Mat Min Exi Combat Hostiles Destroyed 6 | . 6 . . AOE 6 | . 6 . . Classes Destroyed 6 | 2 4 . . Worker 2 | . 2 . . Tunneler 4 | 4 . . . Recycler 2 | 1 1 . . Operator 1 | . 1 . . Watcher 1 | . 1 . . Grunt 6 | . 6 . . Best Kill Streak 5 | 2 5 . . Combat Bots Only 2 | . 2 . . Max Kills in Single Turn 2 | 2 2 . . Gunslinging . | . . . . Exploded 2 | . 2 . . Melee . | . . . . Uniques/NPCs Destroyed 1 | . . . 1 EX-DEC (-10/Exiles) Combat | -11 -10 -10 -10 -------- Run | Yrd Mat Min Exi Hostile Shots Fired 43 | . 37 . 6 Missed 6 | . 6 . . Damage Taken 750 | . 482 . 268 Core 274 | . 173 . 101 Absorbed by Shields . | . . . . Regen/Repaired (Parts) 42 | . 42 . . Core Remaining (%) 100 | 100 . . . Volleys Fired 23 | 7 13 . 3 Largest 1 | 1 1 . 1 Hottest 30 | 30 30 . 30 Shots Fired 23 | 7 13 . 3 Gun . | . . . . Cannon . | . . . . Launcher 23 | 7 13 . 3 Special . | . . . . Kinetic . | . . . . Thermal . | . . . . Explosive 23 | 7 13 . 3 Electromagnetic . | . . . . Robot Hit Streak 8 | 2 5 . 8 Robot Miss Streak 2 | 1 2 . . Penetration Max . | . . . . Secondary Targets . | . . . . Shots Hit Robots 12 | 3 6 . 3 Core Hits 29 | 6 22 . 1 Critical Kills . | . . . . Critical Parts Destroyed . | . . . . Critical Strikes . | . . . . Melee Attacks . | . . . . Impact . | . . . . Slashing . | . . . . Piercing . | . . . . Sneak Attacks . | . . . . Combat Hostiles . | . . . . Follow-up Attacks . | . . . . Damage Inflicted 1272 | 255 819 . 198 Guns . | . . . . Cannons . | . . . . Explosions 1267 | 255 814 . 198 Melee . | . . . . Ramming 5 | . 5 . . Kinetic . | . . . . Thermal . | . . . . Explosive 1267 | 255 814 . 198 Electromagnetic . | . . . . Impact . | . . . . Slashing . | . . . . Piercing . | . . . . Highest Corruption . | . . . . Average Corruption . | . . . . Corruption Purged . | . . . . Corruption Blocked . | . . . . Overload Shots . | . . . . Overflow Damage 9 | 3 6 . . Projectiles . | . . . . Explosions 9 | 3 6 . . Melee . | . . . . Knockbacks . | . . . . Impact . | . . . . Kinetic . | . . . . Secondary . | . . . . Self-Inflicted Damage 54 | . 54 . . Shots 5 | . 5 . . Rammed 1 | . 1 . . Targets Rammed 1 | . 1 . . Kicked . | . . . . Crushed . | . . . . Highest Temperature 10 | . 10 . . Average Temperature 5 | . 5 . . Received Heat Transfer 237 | . 237 . . Siege Activations . | . . . . Robots Corrupted . | . . . . Combat Hostiles . | . . . . Parts Fried . | . . . . Impact Corruptions . | . . . . Robots Melted . | . . . . Combat Hostiles . | . . . . Parts Melted . | . . . . Heat Transferred . | . . . . Parts Sabotaged . | . . . . Parts Stolen . | . . . . Parts Stripped . | . . . . Power Chain Reactions . | . . . . Alert | -11 -10 -10 -10 ------- Run | Yrd Mat Min Exi Peak Influence 255 | 25 255 129 . Initial 99 | . 16 99 . Average 124 | 14 184 111 . Maximum Alert Level 1 | . 1 . . Low Security (%) 74 | 100 44 100 . Level 1 25 | . 55 . . Level 2 . | . . . . Level 3 . | . . . . Level 4 . | . . . . Level 5 . | . . . . High Security . | . . . . Max Security . | . . . . Squads Dispatched 1 | . 1 . . Investigation 1 | . 1 . . Extermination . | . . . . Reinforcement . | . . . . Assault . | . . . . Garrison . | . . . . Intercept . | . . . . Searches Triggered . | . . . . Construction Impeded . | . . . . Haulers Reinforced . | . . . . Active Scanning Responses . | . . . . Cargo Convoy Interrupts . | . . . . Stealth | -11 -10 -10 -10 --------- Run | Yrd Mat Min Exi Distress Signals 1 | . 1 . . Communications Jammed . | . . . . Distress Signals . | . . . . Times Spotted 22 | . 8 1 13 Peak Tracking Total 12 | . 4 2 12 Tactical Retreats 2 | . . 1 1 Traps | -11 -10 -10 -10 ------- Run | Yrd Mat Min Exi Traps Triggered 1 | . 1 . . Indirectly . | . . . . Trap Hack Attempts . | . . . . Triggered . | . . . . Disarmed . | . . . . Reprogrammed . | . . . . Reused . | . . . . Traps Extracted . | . . . . Installed . | . . . . Triggered . | . . . . Machines | -11 -10 -10 -10 ---------- Run | Yrd Mat Min Exi Machines Disabled 3 | . 1 . 2 Max in Single Turn 1 | . 1 . 1 Machines Repaired . | . . . . Machines Dismantled . | . . . . Machines Sabotaged . | . . . . Overloaded Fab Kills . | . . . . Hacking | -11 -10 -10 -10 --------- Run | Yrd Mat Min Exi Machines Accessed 4 | . 3 . 1 Terminals 1 | . 1 . . Fabricators . | . . . . Repair Stations 1 | . 1 . . Recycling Units 1 | . 1 . . Scanalyzers . | . . . . Garrison Access . | . . . . Total Hacks 8 | . 7 . 1 Successful 6 | . 5 . 1 Failed 2 | . 2 . . Catastrophic . | . . . . Database Lockouts . | . . . . Manual 3 | . 2 . 1 Terminals 4 | . 4 . . Fabricators . | . . . . Repair Stations 2 | . 2 . . Recycling Units 1 | . 1 . . Scanalyzers . | . . . . Garrison Access . | . . . . Terminal Hacks 2 | . 1 . 1 Zone Layout 1 | . 1 . . Derelict Proto ID Bank 1 | . . . 1 Fabricator Hacks . | . . . . Repair Station Hacks 2 | . 2 . . Scan Component 1 | . 1 . . Repair 1 | . 1 . . Recycling Unit Hacks 1 | . 1 . . Process 1 | . 1 . . Scanalyzer . | . . . . Garrison Access Hacks . | . . . . Unauthorized Hacks 1 | . 1 . . Terminals 1 | . 1 . . Botnet 1 | . 1 . . Fabricators . | . . . . Repair Stations . | . . . . Recycling Units . | . . . . Scanalyzers . | . . . . Garrison Access . | . . . . Data Cores Recovered . | . . . . Used . | . . . . Hacking Detections 2 | . 2 . . Full Trace Events . | . . . . Feedback Events . | . . . . Feedback Blocked . | . . . . Robot Schematics Acquired . | . . . . Robots Built . | . . . . Authchips . | . . . . Time . | . . . . Total Robot Build Rating . | . . . . Part Schematics Acquired . | . . . . Parts Built . | . . . . Authchips . | . . . . Time . | . . . . Total Part Build Rating . | . . . . Parts Repaired 1 | . 1 . . Time 38 | . 38 . . Parts Recycled . | . . . . Recycled Matter 4 | . 4 . . Retrieved Matter . | . . . . Retrieved Components . | . . . . Parts Scanalyzed . | . . . . Part Schematics Acquired . | . . . . Parts Damaged . | . . . . Bothacking | -11 -10 -10 -10 ------------ Run | Yrd Mat Min Exi Used RIF Installer . | . . . . Robots Hacked . | . . . . Non-combat . | . . . . Combat . | . . . . Robot Hacks Applied . | . . . . Relay Couplers Released . | . . . . Fabnet Peak Effective % . | . . . . Robots Rewired . | . . . . Allies Hacked . | . . . . Hacks Repelled . | . . . . Allies | -11 -10 -10 -10 -------- Run | Yrd Mat Min Exi Total Allies 3 | . . 3 . Largest Group 3 | . . 3 3 Highest-Rated Group 40 | . . 40 40 Highest-Rated Ally 16 | . . 16 16 Total Orders . | . . . . Ally Attacks 14 | . . . 14 Total Damage 178 | . . . 178 Kills 1 | . . . 1 Allies Corrupted . | . . . . Allies Melted . | . . . . Intel | -11 -10 -10 -10 ------- Run | Yrd Mat Min Exi Robot Analysis Total . | . . . . Derelict Logs Recovered . | . . . . Drone Launches . | . . . . Drone Recoveries . | . . . . Exploration | -11 -10 -10 -10 ------------- Run | Yrd Mat Min Exi Turns Passed 860 | 138 295 204 223 Spaces Moved 569 | 76 156 156 181 Core 90 | 30 60 . . Treads . | . . . . Legs 405 | . 68 156 181 Wheels 74 | 46 28 . . Hover . | . . . . Flight . | . . . . Fastest Speed 50 | 50 95 120 120 Average Speed 121 | 110 129 120 120 Slowest Speed 250 | 200 250 120 120 Overloaded Moves . | . . . . Propulsion Burnouts . | . . . . Robots Hopped . | . . . . Cave-ins Triggered . | . . . . Exploration Rate (%) 35 | 5 24 55 56 Regions Visited 3 Branch Regions 2 Pre-discovered Areas . | . . . . Known Exits Taken . | . . . . Unknown Exits Taken 3 | 1 1 1 . Scrap Searched . | . . . . Spaces Dug . | . . . . Terrain Destroyed 120 | 44 62 . 14 Melee . | . . . . Projectile . | . . . . AOE 120 | 44 62 . 14 Terrain Rammed . | . . . . Walls Destroyed . | . . . . Machines Disabled . | . . . . Actions | -11 -10 -10 -10 --------- Run | Yrd Mat Min Exi Total 713 | 120 235 173 185 Wait 96 | 28 50 18 . Move 566 | 75 155 155 181 Hop . | . . . . Pick Up 10 | 3 7 . . Fast Attach 10 | 5 5 . . Attach 3 | . 2 . 1 Detach 1 | . 1 . . Swap 1 | 1 . . . Drop 2 | 1 1 . . Fire 23 | 7 13 . 3 Melee . | . . . . Ram 1 | . 1 . . Kick . | . . . . Crush . | . . . . Escape Stasis . | . . . . Rewire . | . . . . Trap . | . . . . Miscellaneous . | . . . . Route ------- -11/Scrapyard -10/Materials -10/Mines (discovered 3 exits: [*Mat x2] / *Exi) -10/Exiles History --------- Turn | Location | Event 2 | -11/Scrapyard | Met Revision 17 12 | -11/Scrapyard | Discovered new exit (range 15) 139 | -11/Scrapyard | Entered Materials 206 | -10/Materials | Lost 3 parts (1p1n1w) 208 | -10/Materials | Discovered new exit (range 11) 261 | -10/Materials | Core integrity fell below 50% 407 | -10/Materials | Repaired Lgt. Nuclear Core 434 | -10/Materials | Entered Mines 559 | -10/Mines | Discovered new exit (range 9) 562 | -10/Mines | Build established: Scavenger-Mutant 580 | -10/Mines | Assisted by bots powering up and referring to "LRC-V3" 590 | -10/Mines | Discovered new exit (range 15) 628 | -10/Mines | Deemed a non-threat by the Exiles lab entrance 629 | -10/Mines | Discovered new exit (range 5) 638 | -10/Mines | Entered Exiles 638 | -10/Exiles | Accompanied by 3 allies 670 | -10/Exiles | Met 8R-AWN 689 | -10/Exiles | Met EX-HEX 722 | -10/Exiles | Met EX-BIN 738 | -10/Exiles | Aligned with FarCom system 739 | -10/Exiles | Given EX-Vault access code 767 | -10/Exiles | Opened EX-Vault 794 | -10/Exiles | Warned to stay clear of 0b10 Research branches 829 | -10/Exiles | Met EX-DEC 849 | -10/Exiles | Attacked by the Exiles 853 | -10/Exiles | Core integrity fell below 20% 858 | -10/Exiles | Allies destroyed EX-DEC 861 | -10/Exiles | Destroyed by DAS Turret with DAS Cannon Last Messages --------------- 00848_ Machine disabled. 00849_ The unstable cave ceiling collapses. 00849_ EXILES: Hostile robot within lab perimeter. Defensive protocols time, folks! 00851_ EX-DEC: "Let's see what this bad boy can do..." 00851_ EX-DEC deploys DAS Turret. 00853_ Trooper 1b knocked back. 00854_ Mercenary 1a destroyed. 00854_ Machine disabled. 00854_ EX-DEC suffers critical hit (Burn). 00854_ Acquired 7 matter. 00855_ Machine disabled. 00857_ Grenade Launcher destroyed. 00858_ EX-DEC heat short circuits Imp. Armor Integrity Analyzer. 00858_ EX-DEC critical meltdown. 00858_ EX-DEC: "This would never have happened if OCT was still around!" 00859_ Aluminum Leg destroyed. 00859_ Knocked back. 00861_ EX-BIN: "I just want to science!" 00861_ Grenade Launcher destroyed. Map ----- +----------------------------------------------------+ | ???????????????????????????????????#" " | | ???????????????????????????????????## " | | ????????????????????????????????????# " | | ????????????????????????????????????#" "X" " | | ????????????????????????????????????#" """ | | ?????????????????????? ????????????#" """"""" | | ??????????????????????" ??????????##" ######## | | ??????????????????????# ?????????##"" #??????? | | ????????????????????### ##??######"" #??????? | | ????????????????#####X# #"###""""""" ##?????? | | ??????????????? """""" " "" ##???## | | ?????????????? "" """ " #####" | | ????????????? " " " | | ????????????? | | ???????????? | | ????????????? | | ?????????????# | | ??????????????#" | | ??????????????#""" c """""" | | ??????????????#" ######""" | | ?????????????#"" ""##????#####""" | | ?????????????#""" z """##?????????##""" | | ?????????????""" """##???????????#"""" | | ????????????#""" ""#?######?????#"" | | ????????????# " ### # #?????"""" | | ????????????#" @ # ###??? | | ????????????# % """ | | ????????????# t % a ac | | ???????????# % a | | ???????????## g a a | | ????????????# " g " "" | | ????????????###"""" =% ""## #??"" " " | | ??????????????#" ""###???????##""" | | ??????????????#" """##?????????????"" | | ??????????????#""" """#???????????????? | | ??????????????## =!! ""##???????????????? | | ???????????????#"" !%! """##????????????????? | | ???????????????##"""&! ##?????????????????? | | ????????????????##"""" ##??????????????????? | | ??????????????????## #???????????????????? | | ???????????????????##### ##???????????????????? | | ???????????????????????## #????????????????????? | | ????????????????????????# #????????????????????? | | ????????????????????????# #????????????????????? | | ????????????????????????# ?????????????????????? | | ????????????????????????? ?????????????????????? | | ?????????????????????????????????????????????????? | | ?????????????????????????????????????????????????? | | ?????????????????????????????????????????????????? | | ?????????????????????????????????????????????????? | +----------------------------------------------------+ Best States ------------- Heat Dissipation 25 Energy Generation 14 Energy Capacity 160 Matter Stores 271 Matter Capacity 300 Sight Range 16 Terrain Scan Density 10 Evasion (%) 55 Item Schematics ----------------- None Robot Schematics ------------------ None Fabricated ------------ Nothing Alien Tech Used ----------------- None Achievements -------------- None Challenges ------------ None Game ------ Seed CoolantMassDoublenader Manual? 0 Play Time 00:08:42 Cumulative 161.3 hours Start 2024.05.19 @ 15:19:29 End 2024.05.19 @ 15:26:41 Sessions 1 Manual Loads 0 Difficulty Rogue Special Mode AFD2018/Launchers Game No. 42 Rogue 37 Adventurer 4 Explorer 1 Win Type - Total 2 Types 1/0/1/0/0/0/0/0/0 Lore% 38 Gallery% 56 Achievement% 41 Wizard Run 0 Options --------- Layout 0 ASCII 0 Keyboard 0 Movement Mouse Keybinds 0 Fullscreen 1 Font 24/Smallcaps Map View 76x50 Zoom Use 0% Tactical HUD 1 Map Filters NONE Filters NONE Steam X RUN: e12a1b6e-31b0-4b1c-abdd-02b1ee7513bb